fUSD/lending_fUSD_20240412
["ID","MTS","AMOUNT","RATE_DAILY","PERIOD"]
[322352594,1712958661586,-500.0,0.00047397,31]
[322352595,1712958661596,-500.0,0.00047397,31]
[322352596,1712958661607,-500.0,0.00047397,31]
[322352597,1712958661616,-510.75,0.00047397,31]
[322352598,1712958661628,-500.0,0.00047397,31]
[322352599,1712958661637,-1868.15,0.00047397,31]
[322352600,1712958661647,-500.0,0.00047397,31]
[322352601,1712958661656,-500.0,0.00047397,31]
[322352602,1712958661666,-761.6,0.00047397,31]
[322352603,1712958661675,-757.87,0.00047397,31]
[322352604,1712958661684,-604.93,0.00047397,31]
[322352605,1712958661693,-500.0,0.00047397,31]
[322352606,1712958661703,-500.0,0.00047397,31]
[322352607,1712958661712,-590.53,0.00047397,31]
[322352608,1712958661721,-500.0,0.00047397,31]
[322352609,1712958661731,-500.0,0.00047397,31]
[322352610,1712958661740,-151.0,0.00047397,14]
[322352611,1712958661749,-151.0,0.00047397,14]
[322352612,1712958661758,-500.0,0.00047397,31]
[322352613,1712958661767,-1480.64,0.00047397,31]
[322352614,1712958661777,-500.0,0.00047397,31]
[322352615,1712958661787,-504.96,0.00047397,31]
[322352616,1712958661796,-500.0,0.00047397,31]
[322352617,1712958661805,-500.0,0.00047397,31]
[322352618,1712958661814,-500.0,0.00047397,31]
[322352619,1712958661824,-500.0,0.00047397,31]
[322352620,1712958661833,-500.0,0.00047397,31]
[322352621,1712958661842,-500.0,0.00047397,31]
[322352622,1712958661853,-500.0,0.00047397,31]
[322352623,1712958661862,-420.01085551,0.00047397,31]
[322352624,1712958661871,-151.0,0.00047397,14]
[322352625,1712958661881,-237.025983,0.00047397,14]
[322352626,1712958661891,-163.56213355,0.00047437,30]
[322352627,1712958661900,-830.02081525,0.00047471,13]
[322352628,1712958661910,-157.79011716,0.00047479,60]
[322352629,1712958661919,-325.1950212,0.00047493,2]
[322352630,1712958661928,-150.0,0.000475,9]
[322352631,1712958661937,-493.01,0.0004767,31]
[322352632,1712958661947,-500.0,0.0004767,31]
[322352633,1712958661956,-151.0,0.0004767,14]
[322352634,1712958661965,-151.0,0.0004767,14]
[322352635,1712958661975,-151.0,0.0004767,14]
[322352636,1712958661984,-151.0,0.0004767,7]
[322352637,1712958661993,-151.0,0.0004767,14]
[322352638,1712958662003,-151.0,0.0004767,14]
[322352639,1712958662012,-151.0,0.0004767,14]
[322352640,1712958662021,-500.0,0.00047671,31]
[322352641,1712958662033,-500.0,0.00047671,31]
[322352642,1712958662043,-151.0,0.00047671,14]
[322352643,1712958662054,-663.41,0.00047671,31]
[322352644,1712958662063,-304.16,0.00047671,31]
[322352645,1712958662074,-259.336446,0.00047671,14]
[322352646,1712958662083,-500.0,0.00047671,31]
[322352647,1712958662093,-500.0,0.00047671,31]
[322352648,1712958662104,-500.0,0.00047671,31]
[322352649,1712958662113,-151.0,0.00047671,14]
[322352650,1712958662123,-500.0,0.00047671,7]
[322352651,1712958662137,-500.0,0.00047671,31]
[322352652,1712958662146,-500.0,0.00047671,31]
[322352653,1712958662156,-500.0,0.00047671,31]
[322352654,1712958662165,-500.0,0.00047671,31]
[322352655,1712958662174,-151.0,0.00047671,14]
[322352656,1712958662184,-500.0,0.00047671,31]
[322352657,1712958662193,-500.0,0.00047671,31]
[322352658,1712958662202,-151.0,0.00047671,14]
[322352659,1712958662212,-500.0,0.00047671,31]
[322352660,1712958662221,-151.0,0.00047671,14]
[322352661,1712958662230,-373.04,0.00047671,31]
[322352662,1712958662240,-282.770874,0.00047671,14]
[322352663,1712958662249,-282.770874,0.00047671,14]
[322352664,1712958662258,-151.0,0.00047671,7]
[322352665,1712958662267,-151.0,0.00047671,14]
[322352666,1712958662276,-500.0,0.00047671,31]
[322352667,1712958662286,-500.0,0.00047671,31]
[322352668,1712958662295,-355.91066,0.00047671,14]
[322352669,1712958662304,-355.91066,0.00047671,14]
[322352670,1712958662313,-500.0,0.00047671,31]
[322352671,1712958662322,-500.0,0.00047671,31]
[322352672,1712958662331,-173.27,0.00047671,31]
[322352673,1712958662341,-151.0,0.00047671,14]
[322352674,1712958662350,-500.0,0.00047671,31]
[322352675,1712958662359,-500.0,0.00047671,31]
[322352676,1712958662369,-500.0,0.00047671,31]
[322352677,1712958662379,-151.0,0.00047671,14]
[322352678,1712958662388,-500.0,0.00047671,31]
[322352679,1712958662398,-496.04,0.00047671,31]
[322352680,1712958662407,-500.0,0.00047671,31]
[322352681,1712958662416,-151.0,0.00047671,14]
[322352682,1712958662425,-151.0,0.00047671,14]
[322352683,1712958662434,-151.0,0.00047671,14]
[322352684,1712958662444,-500.0,0.00047671,31]
[322352685,1712958662453,-151.0,0.00047671,14]
[322352686,1712958662463,-479.763005,0.00047671,31]
[322352687,1712958662472,-500.0,0.00047671,31]
[322352688,1712958662482,-151.0,0.00047671,14]
[322352689,1712958662491,-538.33,0.00047671,31]
[322352690,1712958662500,-500.0,0.00047671,31]
[322352691,1712958662509,-151.0,0.00047671,14]
[322352692,1712958662518,-500.0,0.00047671,31]
[322352693,1712958662527,-500.0,0.00047671,31]
[322352694,1712958662536,-500.0,0.00047671,31]
[322352695,1712958662545,-151.0,0.00047671,14]
[322352696,1712958662554,-188.985821,0.00047671,14]
[322352697,1712958662563,-500.0,0.00047671,31]
[322352698,1712958662572,-188.985821,0.00047671,14]
[322352699,1712958662581,-151.0,0.00047671,14]
[322352700,1712958662590,-500.0,0.00047671,31]
[322352701,1712958662601,-362.84,0.00047671,31]
[322352702,1712958662610,-500.0,0.00047671,31]
[322352703,1712958662619,-500.0,0.00047671,31]
[322352704,1712958662628,-500.0,0.00047671,31]
[322352705,1712958662637,-500.0,0.00047671,31]
[322352706,1712958662646,-500.0,0.00047671,31]
[322352707,1712958662655,-538.15,0.00047671,31]
[322352708,1712958662664,-151.0,0.00047671,14]
[322352709,1712958662673,-500.0,0.00047671,31]
[322352710,1712958662683,-500.0,0.00047671,31]
[322352711,1712958662692,-151.0,0.00047671,14]
[322352712,1712958662702,-500.0,0.00047671,31]
[322352713,1712958662711,-500.0,0.00047671,31]
[322352714,1712958662720,-151.0,0.00047671,14]
[322352715,1712958662730,-500.0,0.00047671,31]
[322352716,1712958662740,-500.0,0.00047671,31]
[322352717,1712958662749,-576.55,0.00047671,31]
[322352718,1712958662758,-168.269111,0.00047671,14]
[322352719,1712958662767,-168.269111,0.00047671,14]
[322352720,1712958662777,-500.0,0.00047671,31]
[322352721,1712958662786,-500.0,0.00047671,31]
[322352722,1712958662795,-933.0,0.00047671,31]
[322352723,1712958662805,-2019.61,0.00047671,31]
[322352724,1712958662814,-151.0,0.00047671,14]
[322352725,1712958662823,-690.76,0.00047671,31]
[322352726,1712958662833,-500.0,0.00047671,31]
[322352727,1712958662842,-360.20255207,0.00047671,31]
[322352728,1712958662851,-500.0,0.00047671,31]
[322352729,1712958662860,-500.0,0.00047671,31]
[322352730,1712958662870,-493.497385,0.00047671,14]
[322352731,1712958662879,-181.67,0.00047671,31]
[322352732,1712958662888,-500.0,0.00047671,31]
[322352733,1712958662898,-564.75,0.00047671,31]
[322352734,1712958662907,-500.0,0.00047671,31]
[322352735,1712958662917,-493.497385,0.00047671,14]
[322352736,1712958662926,-199.21327714,0.00047671,31]
[322352737,1712958662935,-539.86,0.00047671,31]
[322352738,1712958662944,-500.0,0.00047671,31]
[322352739,1712958662954,-661.77,0.00047671,31]
[322352740,1712958662963,-500.0,0.00047671,31]
[322352741,1712958662972,-950.68,0.00047671,31]
[322352742,1712958662981,-500.0,0.00047671,31]
[322352743,1712958662991,-2117.29,0.00047671,31]
[322352744,1712958663000,-500.0,0.00047671,31]
[322352745,1712958663009,-151.0,0.00047671,14]
[322352746,1712958663018,-151.0,0.00047671,14]
[322352747,1712958663029,-1018.48,0.00047671,31]
[322352748,1712958663042,-151.0,0.00047671,14]
[322352749,1712958663051,-500.0,0.00047671,2]
[322352750,1712958663060,-151.0,0.00047671,14]
[322352751,1712958663070,-500.0,0.00047671,31]
[322352752,1712958663080,-185.044192,0.00047671,14]
[322352753,1712958663089,-679.68,0.00047671,31]
[322352754,1712958663099,-158.61329308,0.00047671,31]
[322352755,1712958663109,-843.3,0.00047671,31]
[322352756,1712958663119,-4584.66,0.00047671,31]
[322352757,1712958663128,-500.0,0.00047671,31]
[322352758,1712958663138,-500.0,0.00047671,31]
[322352759,1712958663148,-964.63,0.00047671,31]
[322352760,1712958663158,-500.0,0.00047671,31]
[322352761,1712958663167,-1471.09,0.00047671,31]
[322352762,1712958663176,-151.0,0.00047671,14]
[322352763,1712958663186,-500.0,0.00047671,31]
[322352764,1712958663195,-567.23,0.00047671,31]
[322352765,1712958663205,-626.32,0.00047671,31]
[322352766,1712958663214,-151.0,0.00047671,14]
[322352767,1712958663223,-500.0,0.00047671,31]
[322352768,1712958663232,-500.0,0.00047671,31]
[322352769,1712958663242,-500.0,0.00047671,31]
[322352770,1712958663252,-500.0,0.00047671,31]
[322352771,1712958663262,-500.0,0.00047671,31]
[322352772,1712958663272,-500.0,0.00047671,31]
[322352773,1712958663281,-404.28521369,0.00047671,31]
[322352774,1712958663291,-504.77,0.00047671,31]
[322352775,1712958663301,-419.35768753,0.00047671,31]
[322352776,1712958663311,-500.0,0.00047671,31]
[322352777,1712958663320,-2161.08,0.00047671,31]
[322352778,1712958663330,-500.0,0.00047671,31]
[322352779,1712958663339,-1034.34,0.00047671,21]
[322352780,1712958663348,-500.0,0.00047671,31]
[322352781,1712958663357,-500.0,0.00047671,31]
[322352782,1712958663366,-657.185597,0.00047671,14]
[322352783,1712958663376,-500.0,0.00047671,31]
[322352784,1712958663385,-657.185597,0.00047671,14]
[322352785,1712958663394,-1543.137664,0.00047671,14]
[322352786,1712958663404,-151.0,0.00047671,14]
[322352787,1712958663413,-564.36,0.00047671,31]
[322352788,1712958663423,-1543.137664,0.00047671,14]
[322352789,1712958663434,-500.0,0.00047671,31]
[322352790,1712958663443,-500.0,0.00047671,31]
[322352791,1712958663453,-151.0,0.00047671,14]
[322352792,1712958663464,-500.0,0.00047671,31]
[322352793,1712958663473,-500.0,0.00047671,31]
[322352794,1712958663483,-848.58,0.00047671,31]
[322352795,1712958663493,-500.0,0.00047671,31]
[322352796,1712958663503,-500.0,0.00047671,31]
[322352797,1712958663512,-1673.04,0.00047671,31]
[322352798,1712958663521,-649.268373,0.00047671,14]
[322352799,1712958663530,-2316.35,0.00047671,31]
[322352800,1712958663540,-649.268373,0.00047671,14]
[322352801,1712958663549,-500.0,0.00047671,31]
[322352802,1712958663559,-500.0,0.00047671,31]
[322352803,1712958663569,-500.0,0.00047671,31]
[322352804,1712958663579,-500.0,0.00047671,31]
[322352805,1712958663588,-500.0,0.00047671,31]
[322352806,1712958663597,-722.55,0.00047671,31]
[322352807,1712958663607,-754.19,0.00047671,31]
[322352808,1712958663616,-677.12,0.00047671,31]
[322352809,1712958663626,-500.0,0.00047671,31]
[322352810,1712958663635,-215.428086,0.00047671,14]
[322352811,1712958663645,-500.0,0.00047671,31]
[322352812,1712958663654,-1978.67,0.00047671,31]
[322352813,1712958663664,-215.428086,0.00047671,14]
[322352814,1712958663673,-500.0,0.00047671,31]
[322352815,1712958663683,-500.0,0.00047671,31]
[322352816,1712958663692,-719.28,0.00047671,31]
[322352817,1712958663701,-500.0,0.00047671,31]
[322352818,1712958663711,-500.0,0.00047671,31]
[322352819,1712958663720,-533.63,0.00047671,31]
[322352820,1712958663731,-500.0,0.00047671,31]
[322352821,1712958663740,-500.0,0.00047671,31]
[322352822,1712958663750,-852.78,0.00047671,31]
[322352823,1712958663759,-151.0,0.00047671,14]
[322352824,1712958663769,-650.62,0.00047671,31]
[322352825,1712958663780,-500.0,0.00047671,31]
[322352826,1712958663789,-663.97,0.00047671,31]
[322352827,1712958663798,-1170.71,0.00047671,31]
[322352828,1712958663808,-500.0,0.00047671,31]
[322352829,1712958663817,-500.0,0.00047671,31]
[322352830,1712958663827,-500.0,0.00047671,31]
[322352831,1712958663837,-913.83,0.00047671,31]
[322352832,1712958663847,-500.0,0.00047671,31]
[322352833,1712958663857,-760.9,0.00047671,31]
[322352834,1712958663866,-975.42,0.00047671,31]
[322352835,1712958663876,-500.0,0.00047671,31]
[322352836,1712958663885,-500.0,0.00047671,31]
[322352837,1712958663894,-1247.05,0.00047671,31]
[322352838,1712958663904,-737.88,0.00047671,31]
[322352839,1712958663913,-500.0,0.00047671,31]
[322352840,1712958663923,-3574.09,0.00047671,31]
[322352841,1712958663932,-746.31,0.00047671,31]
[322352842,1712958663941,-1154.88,0.00047671,31]
[322352843,1712958663951,-1303.28,0.00047671,31]
[322352844,1712958663960,-500.0,0.00047671,31]
[322352845,1712958663970,-500.0,0.00047671,31]
[322352846,1712958663980,-510.75,0.00047671,31]
[322352847,1712958663989,-500.0,0.00047671,31]
[322352848,1712958663999,-1868.15,0.00047671,31]
[322352849,1712958664009,-500.0,0.00047671,31]
[322352850,1712958664019,-761.6,0.00047671,31]
[322352851,1712958664030,-500.0,0.00047671,31]
[322352852,1712958664040,-757.87,0.00047671,31]
[322352853,1712958664052,-604.93,0.00047671,31]
[322352854,1712958664062,-500.0,0.00047671,31]
[322352855,1712958664072,-590.53,0.00047671,31]
[322352856,1712958664081,-190.33541126,0.00047671,31]
[322352857,1712958664091,-500.0,0.00047671,31]
[322352858,1712958664101,-1480.64,0.00047671,31]
[322352859,1712958664112,-500.0,0.00047671,31]
[322352860,1712958664123,-504.96,0.00047671,31]
[322352861,1712958664133,-500.0,0.00047671,31]
[322352862,1712958664143,-158.31388375,0.00047671,31]
[322352863,1712958664153,-249.17,0.00047671,31]
[322352864,1712958664163,-500.0,0.00047671,31]
[322352865,1712958664173,-500.0,0.00047671,31]
[322352866,1712958664183,-282.11187852,0.00047845,2]
[322352867,1712958664193,-157.79011716,0.00047863,60]
[322352868,1712958664203,-150.5,0.00047915,15]
[322352869,1712958664213,-188.0,0.00047915,15]
[322352870,1712958664223,-150.5,0.00047925,15]
[322352871,1712958664233,-150.5,0.00047925,15]
[322352872,1712958664242,-150.5,0.00047935,15]
[322352873,1712958664252,-150.5,0.00047935,15]
[322352874,1712958664261,-413.85505289,0.00047939,2]
[322352875,1712958664272,-233.11,0.00047944,31]
[322352876,1712958664281,-151.0,0.00047945,14]
[322352877,1712958664291,-151.0,0.00047945,14]
[322352878,1712958664301,-177.0,0.00047945,14]
[322352879,1712958664311,-223.266435,0.00047945,14]
[322352880,1712958664321,-151.0,0.00047945,14]
[322352881,1712958664331,-151.0,0.00047945,14]
[322352882,1712958664341,-500.0,0.00047945,31]
[322352883,1712958664351,-500.0,0.00047945,31]
[322352884,1712958664361,-663.41,0.00047945,31]
[322352885,1712958664372,-463.04473107,0.00047945,31]
[322352886,1712958664381,-447.38,0.00047945,31]
[322352887,1712958664391,-500.0,0.00047945,31]
[322352888,1712958664400,-500.0,0.00047945,7]
[322352889,1712958664410,-500.0,0.00047945,31]
[322352890,1712958664419,-165.35743546,0.00047945,31]
[322352891,1712958664429,-500.0,0.00047945,31]
[322352892,1712958664440,-500.0,0.00047945,31]
[322352893,1712958664449,-594.38256086,0.00047945,31]
[322352894,1712958664459,-500.0,0.00047945,31]
[322352895,1712958664469,-500.0,0.00047945,31]
[322352896,1712958664479,-500.0,0.00047945,31]
[322352897,1712958664488,-500.0,0.00047945,31]
[322352898,1712958664498,-273.8179823,0.00047945,31]
[322352899,1712958664507,-500.0,0.00047945,31]
[322352900,1712958664517,-500.0,0.00047945,31]
[322352901,1712958664526,-500.0,0.00047945,31]
[322352902,1712958664536,-243.33,0.00047945,31]
[322352903,1712958664546,-500.0,0.00047945,31]
[322352904,1712958664557,-500.0,0.00047945,31]
[322352905,1712958664567,-500.0,0.00047945,31]
[322352906,1712958664576,-538.33,0.00047945,31]
[322352907,1712958664586,-500.0,0.00047945,31]
[322352908,1712958664596,-167.69,0.00047945,31]
[322352909,1712958664607,-500.0,0.00047945,31]
[322352910,1712958664616,-348.32802828,0.00047945,31]
[322352911,1712958664625,-252.26,0.00047945,31]
[322352912,1712958664635,-500.0,0.00047945,31]
[322352913,1712958664645,-500.0,0.00047945,31]
[322352914,1712958664655,-500.0,0.00047945,31]
[322352915,1712958664665,-500.0,0.00047945,31]
[322352916,1712958664674,-538.15,0.00047945,31]
[322352917,1712958664684,-613.97918176,0.00047945,31]
[322352918,1712958664694,-500.0,0.00047945,31]
[322352919,1712958664704,-500.0,0.00047945,31]
[322352920,1712958664714,-500.0,0.00047945,31]
[322352921,1712958664724,-500.0,0.00047945,31]
[322352922,1712958664735,-500.0,0.00047945,31]
[322352923,1712958664744,-576.55,0.00047945,31]
[322352924,1712958664754,-500.0,0.00047945,31]
[322352925,1712958664764,-179.03526118,0.00047945,31]
[322352926,1712958664775,-933.0,0.00047945,31]
[322352927,1712958664786,-2019.61,0.00047945,31]
[322352928,1712958664796,-690.76,0.00047945,31]
[322352929,1712958664806,-500.0,0.00047945,31]
[322352930,1712958664816,-500.0,0.00047945,31]
[322352931,1712958664826,-500.0,0.00047945,31]
[322352932,1712958664836,-500.0,0.00047945,31]
[322352933,1712958664846,-564.75,0.00047945,31]
[322352934,1712958664857,-539.86,0.00047945,31]
[322352935,1712958664866,-661.77,0.00047945,31]
[322352936,1712958664876,-500.0,0.00047945,31]
[322352937,1712958664886,-950.68,0.00047945,31]
[322352938,1712958664895,-585.73264185,0.00047945,31]
[322352939,1712958664905,-2117.29,0.00047945,31]
[322352940,1712958664915,-500.0,0.00047945,31]
[322352941,1712958664925,-1018.48,0.00047945,31]
[322352942,1712958664935,-500.0,0.00047945,2]
[322352943,1712958664944,-500.0,0.00047945,31]
[322352944,1712958664954,-679.68,0.00047945,31]
[322352945,1712958664964,-843.3,0.00047945,31]
[322352946,1712958664974,-4584.66,0.00047945,31]
[322352947,1712958664983,-500.0,0.00047945,31]
[322352948,1712958664993,-964.63,0.00047945,31]
[322352949,1712958665003,-500.0,0.00047945,31]
[322352950,1712958665013,-1471.09,0.00047945,31]
[322352951,1712958665023,-501.77,0.00047945,31]
[322352952,1712958665039,-567.23,0.00047945,31]
[322352953,1712958665052,-500.0,0.00047945,31]
[322352954,1712958665063,-500.0,0.00047945,31]
[322352955,1712958665076,-500.0,0.00047945,31]
[322352956,1712958665088,-500.0,0.00047945,31]
[322352957,1712958665099,-500.0,0.00047945,31]
[322352958,1712958665111,-500.0,0.00047945,31]
[322352959,1712958665122,-504.77,0.00047945,31]
[322352960,1712958665135,-2161.08,0.00047945,31]
[322352961,1712958665146,-500.0,0.00047945,31]
[322352962,1712958665157,-1034.34,0.00047945,21]
[322352963,1712958665169,-500.0,0.00047945,31]
[322352964,1712958665180,-256.81058099,0.00047945,31]
[322352965,1712958665192,-500.0,0.00047945,31]
[322352966,1712958665203,-564.36,0.00047945,31]
[322352967,1712958665214,-500.0,0.00047945,31]
[322352968,1712958665225,-500.0,0.00047945,31]
[322352969,1712958665236,-500.0,0.00047945,31]
[322352970,1712958665247,-848.58,0.00047945,31]
[322352971,1712958665257,-500.0,0.00047945,31]
[322352972,1712958665268,-500.0,0.00047945,31]
[322352973,1712958665279,-1673.04,0.00047945,31]
[322352974,1712958665290,-2316.35,0.00047945,31]
[322352975,1712958665301,-500.0,0.00047945,31]
[322352976,1712958665312,-500.0,0.00047945,31]
[322352977,1712958665323,-500.0,0.00047945,31]
[322352978,1712958665334,-274.55,0.00047945,31]
[322352979,1712958665344,-722.55,0.00047945,31]
[322352980,1712958665356,-754.19,0.00047945,31]
[322352981,1712958665367,-677.12,0.00047945,31]
[322352982,1712958665378,-500.0,0.00047945,31]
[322352983,1712958665390,-1978.67,0.00047945,31]
[322352984,1712958665402,-500.0,0.00047945,31]
[322352985,1712958665412,-500.0,0.00047945,31]
[322352986,1712958665423,-719.28,0.00047945,31]
[322352987,1712958665434,-500.0,0.00047945,31]
[322352988,1712958665445,-500.0,0.00047945,31]
[322352989,1712958665457,-533.63,0.00047945,31]
[322352990,1712958665468,-644.18,0.00047945,31]
[322352991,1712958665479,-500.0,0.00047945,31]
[322352992,1712958665491,-852.78,0.00047945,31]
[322352993,1712958665502,-650.62,0.00047945,31]
[322352994,1712958665513,-500.0,0.00047945,31]
[322352995,1712958665524,-663.97,0.00047945,31]
[322352996,1712958665535,-1170.71,0.00047945,31]
[322352997,1712958665546,-500.0,0.00047945,31]
[322352998,1712958665557,-632.28583126,0.00047945,31]
[322352999,1712958665568,-913.83,0.00047945,31]
[322353000,1712958665579,-354.38,0.00047945,31]
[322353001,1712958665590,-760.9,0.00047945,31]
[322353002,1712958665601,-975.42,0.00047945,31]
[322353003,1712958665612,-500.0,0.00047945,31]
[322353004,1712958665623,-1247.05,0.00047945,31]
[322353005,1712958665635,-737.88,0.00047945,31]
[322353006,1712958665645,-500.0,0.00047945,31]
[322353007,1712958665657,-3574.09,0.00047945,31]
[322353008,1712958665668,-746.31,0.00047945,31]
[322353009,1712958665680,-1154.88,0.00047945,31]
[322353010,1712958665691,-1303.28,0.00047945,31]
[322353011,1712958665702,-500.0,0.00047945,31]
[322353012,1712958665713,-510.75,0.00047945,31]
[322353013,1712958665725,-500.0,0.00047945,31]
[322353014,1712958665736,-1868.15,0.00047945,31]
[322353015,1712958665747,-500.0,0.00047945,31]
[322353016,1712958665759,-761.6,0.00047945,31]
[322353017,1712958665770,-500.0,0.00047945,31]
[322353018,1712958665781,-757.87,0.00047945,31]
[322353019,1712958665792,-604.93,0.00047945,31]
[322353020,1712958665803,-500.0,0.00047945,31]
[322353021,1712958665813,-590.53,0.00047945,31]
[322353022,1712958665824,-500.0,0.00047945,31]
[322353023,1712958665835,-1480.64,0.00047945,31]
[322353024,1712958665845,-500.0,0.00047945,31]
[322353025,1712958665856,-504.96,0.00047945,31]
[322353026,1712958665866,-500.0,0.00047945,31]
[322353027,1712958665876,-500.0,0.00047945,31]
[322353028,1712958665886,-500.0,0.00048,30]
[322353029,1712958665896,-151.0,0.00048,120]
[322353030,1712958665906,-241.86666667,0.00048,120]
[322353031,1712958665918,-750.0,0.00048,120]
[322353032,1712958665928,-150.0,0.00048,9]
[322353033,1712958665939,-2044.78147375,0.00048005,24]
[322353034,1712958665949,-151.001,0.00048052,30]
[322353035,1712958665959,-157.779,0.00048052,30]
[322353036,1712958665970,-500.0,0.00048101,30]
[322353037,1712958665980,-500.0,0.00048101,30]
[322353038,1712958665990,-1100.0,0.00048101,30]
[322353039,1712958666001,-500.0,0.00048101,30]
[322353040,1712958666012,-154.14489771,0.0004811,30]
[322353041,1712958666023,-170.11583695,0.00048119,120]
[322353042,1712958666035,-183.7301656,0.00048119,10]
[322353043,1712958666046,-186.9253784,0.00048119,2]
[322353044,1712958666058,-448.20747915,0.00048119,2]
[322353045,1712958666068,-413.22,0.00048214,2]
[322353046,1712958666078,-500.0,0.00048219,31]
[322353047,1712958666090,-663.41,0.00048219,31]
[322353048,1712958666102,-500.0,0.00048219,31]
[322353049,1712958666112,-172.66,0.00048219,7]
[322353050,1712958666122,-500.0,0.00048219,31]
[322353051,1712958666133,-500.0,0.00048219,31]
[322353052,1712958666144,-500.0,0.00048219,31]
[322353053,1712958666154,-500.0,0.00048219,31]
[322353054,1712958666164,-500.0,0.00048219,31]
[322353055,1712958666175,-500.0,0.00048219,31]
[322353056,1712958666186,-500.0,0.00048219,31]
[322353057,1712958666197,-500.0,0.00048219,31]
[322353058,1712958666207,-500.0,0.00048219,31]
[322353059,1712958666218,-500.0,0.00048219,31]
[322353060,1712958666230,-500.0,0.00048219,31]
[322353061,1712958666445,-500.0,0.00048219,31]
[322353062,1712958666455,-566.99286938,0.00048219,31]
[322353063,1712958666465,-538.33,0.00048219,31]
[322353064,1712958666475,-573.28354887,0.00048219,31]
[322353065,1712958666485,-500.0,0.00048219,31]
[322353066,1712958666494,-436.58,0.00048219,31]
[322353067,1712958666504,-173.87118234,0.00048219,31]
[322353068,1712958666514,-500.0,0.00048219,31]
[322353069,1712958666524,-500.0,0.00048219,31]
[322353070,1712958666533,-538.15,0.00048219,31]
[322353071,1712958666543,-500.0,0.00048219,31]
[322353072,1712958666553,-500.0,0.00048219,31]
[322353073,1712958666564,-500.0,0.00048219,31]
[322353074,1712958666574,-500.0,0.00048219,31]
[322353075,1712958666584,-576.55,0.00048219,31]
[322353076,1712958666594,-500.0,0.00048219,31]
[322353077,1712958666606,-933.0,0.00048219,31]
[322353078,1712958666617,-2019.61,0.00048219,31]
[322353079,1712958666627,-690.76,0.00048219,31]
[322353080,1712958666637,-500.0,0.00048219,31]
[322353081,1712958666647,-500.0,0.00048219,31]
[322353082,1712958666657,-564.75,0.00048219,31]
[322353083,1712958666666,-500.0,0.00048219,31]
[322353084,1712958666676,-539.86,0.00048219,31]
[322353085,1712958666686,-661.77,0.00048219,31]
[322353086,1712958666696,-500.0,0.00048219,31]
[322353087,1712958666706,-950.68,0.00048219,31]
[322353088,1712958666716,-2117.29,0.00048219,31]
[322353089,1712958666726,-500.0,0.00048219,31]
[322353090,1712958666736,-1018.48,0.00048219,31]
[322353091,1712958666746,-500.0,0.00048219,2]
[322353092,1712958666757,-500.0,0.00048219,31]
[322353093,1712958666767,-679.68,0.00048219,31]